bitfinex/quotes_BTCUSD_20250618
["timestamp","ask_amount","ask_price","bid_price","bid_amount"]
[1750274368405,0.00959297,104240.0,104210.0,0.31923346]
[1750274368406,0.00959444,104220.0,104210.0,0.42194696]
[1750274368643,0.39201867,104220.0,104210.0,0.41235179]
[1750274368854,0.38242423,104220.0,104210.0,0.42194715]
[1750274369290,0.37282988,104220.0,104210.0,0.23102715]
[1750274369537,0.92392059,104220.0,104210.0,0.19264498]
[1750274369766,0.92392059,104220.0,104210.0,0.00057154]
[1750274369767,1.11039874,104220.0,104210.0,0.00057154]
[1750274369998,1.10080412,104220.0,104210.0,0.00057154]
[1750274370668,1.10080412,104220.0,104210.0,0.2020877]
[1750274370669,0.9013073,104220.0,104210.0,0.2020877]
[1750274370890,0.9013073,104220.0,104210.0,0.23102788]
[1750274370891,0.34,104220.0,104210.0,0.23102788]
[1750274371114,0.34959425,104220.0,104210.0,0.42190788]
[1750274371352,0.344,104220.0,104210.0,0.42190788]
[1750274371563,0.71282988,104220.0,104210.0,0.42190788]
[1750274371807,0.72242423,104220.0,104210.0,0.42190788]
[1750274372030,0.71282988,104220.0,104210.0,0.42190788]
[1750274372471,0.74161402,104220.0,104210.0,0.42190788]
[1750274372686,0.74161402,104220.0,104210.0,0.23102788]
[1750274372687,0.74161384,104220.0,104210.0,0.23102788]
[1750274372907,0.75220874,104220.0,104210.0,0.42190788]
[1750274373339,0.341,104220.0,104210.0,0.23102788]
[1750274373564,0.341,104220.0,104210.0,0.51814964]
[1750274373784,0.72342423,104220.0,104210.0,0.51814964]
[1750274374005,0.001,104220.0,104210.0,0.51814964]
[1750274374230,0.001,104220.0,104210.0,0.55094964]
[1750274374481,0.001,104220.0,104210.0,0.58274964]
[1750274375166,0.001,104220.0,104210.0,0.95557952]
[1750274375830,0.93345344,104250.0,104240.0,0.20161144]
[1750274376049,0.92386149,104250.0,104240.0,0.40204459]
[1750274376267,0.55103161,104250.0,104240.0,0.41163765]
[1750274376503,0.92386149,104250.0,104240.0,0.43082331]
[1750274376723,0.74160584,104250.0,104240.0,0.43082267]
[1750274376945,0.94304459,104250.0,104240.0,0.4114841]
[1750274377168,0.25387007,104260.0,104250.0,0.22077566]
[1750274377169,0.06204,104260.0,104250.0,0.22077566]
[1750274377385,0.06204,104260.0,104250.0,0.21118398]
[1750274377386,0.27304964,104260.0,104250.0,0.21118398]
[1750274377600,0.98588034,104260.0,104250.0,0.1919998]
[1750274377816,0.98588034,104260.0,104250.0,0.20159203]
[1750274378023,0.34959149,104250.0,104240.0,0.42122859]
[1750274378237,0.741605,104250.0,104240.0,0.51747035]
[1750274378457,0.34,104250.0,104240.0,0.51794189]
[1750274379139,0.34959149,104250.0,104240.0,0.51794189]
[1750274379359,0.34,104250.0,104240.0,0.51794189]
[1750274379838,0.005,104250.0,104240.0,0.51794189]
[1750274380054,0.005,104250.0,104240.0,0.58184189]
[1750274381377,0.005,104250.0,104240.0,0.39100189]
[1750274381593,0.005,104250.0,104240.0,0.54846189]
[1750274382038,0.3920113,104260.0,104250.0,0.22077566]
[1750274382487,0.40160233,104260.0,104250.0,0.22077566]
[1750274382712,0.59343119,104260.0,104250.0,0.39235212]
[1750274382950,0.59343119,104260.0,104240.0,0.00062482]
[1750274382951,0.55103089,104250.0,104240.0,0.00062482]
[1750274383168,0.92386077,104250.0,104240.0,0.00062482]
[1750274383388,0.91426872,104250.0,104240.0,0.00062482]
[1750274383645,0.98980957,104250.0,104240.0,0.00047154]
[1750274384080,1.64960121,104250.0,104240.0,0.00047154]
[1750274384311,6.69960121,104250.0,104240.0,0.00047154]
[1750274384537,6.70624627,104250.0,104240.0,0.00047154]
[1750274384762,6.16536977,104250.0,104240.0,0.00047154]
[1750274385017,0.98980957,104250.0,104240.0,0.00047154]
[1750274385242,6.10184957,104250.0,104240.0,0.00047154]
[1750274385459,6.10284957,104250.0,104240.0,0.00047154]
[1750274385674,1.05284957,104250.0,104240.0,0.00047154]
[1750274385895,1.05184957,104250.0,104240.0,0.00047154]
[1750274386119,0.91926872,104250.0,104240.0,0.20208298]
[1750274386337,0.98130872,104250.0,104240.0,0.01021806]
[1750274386558,0.98130872,104250.0,104240.0,0.00062482]
[1750274386799,0.98130872,104250.0,104240.0,0.01021806]
[1750274387020,0.98130872,104250.0,104240.0,0.00062482]
[1750274387471,1.05684957,104250.0,104240.0,0.00047154]
[1750274387685,1.05684957,104250.0,104240.0,0.19233646]
[1750274387899,0.99584957,104250.0,104240.0,0.00047154]
[1750274388559,1.52722121,104250.0,104240.0,0.00047154]
[1750274388789,6.57722121,104250.0,104240.0,0.00047154]
[1750274389234,6.51518121,104250.0,104240.0,0.00047154]
[1750274389457,6.20407133,104250.0,104240.0,0.00047154]
[1750274389692,5.15124176,104250.0,104240.0,0.34997822]
[1750274389916,0.005,104250.0,104240.0,0.56959012]
[1750274390193,0.37782988,104250.0,104240.0,0.3501315]
[1750274390410,0.37782988,104250.0,104240.0,0.31751012]
[1750274391285,0.07131057,104260.0,104250.0,0.22062238]
[1750274391512,0.45373112,104260.0,104250.0,0.22062238]
[1750274391722,0.44414045,104260.0,104250.0,0.22062238]
[1750274391942,0.34958965,104270.0,104260.0,0.2207545]
[1750274392166,0.37282988,104270.0,104260.0,0.2207545]
[1750274392381,0.43454988,104270.0,104260.0,0.2207545]
[1750274392607,0.00958883,104280.0,104270.0,0.23030694]
[1750274392832,0.74968586,104290.0,104280.0,0.21112318]
[1750274393048,0.45293717,104290.0,104280.0,0.2207121]
[1750274393271,0.00879929,104290.0,104280.0,0.2207121]
[1750274393491,0.07051929,104290.0,104280.0,0.2207121]
[1750274393710,0.07130791,104290.0,104280.0,0.2207121]
[1750274393947,0.07053848,104290.0,104280.0,0.2207121]
[1750274394169,0.00895975,104290.0,104280.0,0.2207121]
[1750274394394,0.00014127,104290.0,104280.0,0.31695386]
[1750274394857,0.00014127,104290.0,104280.0,0.50755386]
[1750274395079,0.58892073,104290.0,104280.0,0.00015328]
[1750274395335,0.20138034,104280.0,104270.0,0.20155339]
[1750274395562,0.96634121,104280.0,104270.0,0.00015328]
[1750274395792,0.96394121,104280.0,104270.0,0.00015328]
[1750274396026,0.36877016,104270.0,104260.0,0.21116347]
[1750274396244,0.92382038,104270.0,104260.0,0.00015328]
[1750274396681,0.54141934,104260.0,104250.0,0.20159194]
[1750274396900,0.92384007,104260.0,104250.0,0.20159203]
[1750274397125,0.35918345,104250.0,104240.0,0.2112033]
[1750274397336,0.43049494,104250.0,104240.0,0.30744506]
[1750274397559,0.99517236,104250.0,104240.0,0.20161144]
[1750274397827,0.99517236,104250.0,104240.0,0.21105131]
[1750274398050,0.9663964,104250.0,104240.0,0.1920182]
[1750274398269,0.59356652,104250.0,104240.0,0.21120459]
[1750274398512,0.96648669,104250.0,104240.0,0.22079765]
[1750274398772,0.96648669,104250.0,104240.0,0.21220459]
[1750274399027,1.02327622,104250.0,104240.0,0.20261144]
[1750274399237,1.02327622,104250.0,104240.0,0.21220459]
[1750274399454,1.02327622,104250.0,104240.0,0.00115328]
[1750274399916,1.03781707,104250.0,104240.0,0.001]
[1750274400141,1.10011707,104250.0,104240.0,0.001]
[1750274400389,1.19635883,104250.0,104240.0,0.001]
[1750274400611,1.22458508,104250.0,104240.0,0.001]
[1750274400837,6.35641974,104250.0,104240.0,0.001]
[1750274401064,0.34,104220.0,104210.0,0.21128316]
[1750274401283,0.63200115,104220.0,104210.0,0.21128316]
[1750274401500,0.43050433,104220.0,104210.0,0.23047415]
[1750274401744,0.34886018,104220.0,104210.0,0.3071282]
[1750274401970,0.21105058,104240.0,104230.0,0.20163068]
[1750274402227,0.71198332,104240.0,104230.0,0.20163059]
[1750274402423,0.70239054,104240.0,104230.0,0.21122447]
[1750274402632,0.71141713,104240.0,104230.0,0.23041178]
[1750274402853,0.72100927,104240.0,104230.0,0.21122447]
[1750274403076,0.06172,104240.0,104230.0,0.22081799]
[1750274403744,0.34709029,104250.0,104240.0,0.22079682]
[1750274404208,0.02886588,104250.0,104240.0,0.22079682]
[1750274404423,0.35927374,104250.0,104240.0,0.22079682]
[1750274404853,0.36886588,104250.0,104240.0,0.22079682]
[1750274405066,0.57030454,104250.0,104240.0,0.21120422]
[1750274405283,0.63202454,104250.0,104240.0,0.220797]
[1750274405575,0.62743295,104250.0,104240.0,0.21120432]
[1750274405788,0.62243295,104250.0,104240.0,0.21120432]
[1750274406000,0.42399374,104250.0,104240.0,0.22079701]
[1750274406243,0.43358588,104250.0,104240.0,0.23038961]
[1750274406467,0.61584026,104250.0,104240.0,0.23038961]
[1750274406683,0.63502463,104250.0,104240.0,0.21120432]
[1750274406898,0.63502463,104250.0,104240.0,0.22079701]
[1750274407115,0.62543304,104250.0,104240.0,0.20161135]
[1750274407335,1.04546059,104250.0,104240.0,0.00015328]
[1750274407561,0.54145816,104240.0,104230.0,0.00015328]
[1750274407779,0.3495937,104230.0,104220.0,0.23041747]
[1750274407999,0.35918768,104230.0,104220.0,0.23041747]
[1750274408218,0.21109071,104220.0,104210.0,0.21128242]
[1750274408442,0.23987559,104220.0,104210.0,0.20168734]
[1750274408655,0.27281181,104220.0,104210.0,0.20176944]
[1750274408872,0.27281181,104220.0,104210.0,0.23055671]
[1750274409090,0.09050405,104220.0,104210.0,0.23055671]
[1750274409325,0.29200078,104220.0,104210.0,0.2305569]
[1750274409549,1.05202575,104220.0,104210.0,0.00025328]
[1750274409770,1.04243104,104220.0,104210.0,0.00025328]
[1750274410028,0.41131462,104220.0,104210.0,0.23055625]
[1750274410242,0.4209086,104220.0,104210.0,0.23055625]
[1750274410458,0.44009794,104220.0,104210.0,0.23055625]
[1750274410690,0.34,104220.0,104210.0,0.23055625]
[1750274410907,0.36878387,104220.0,104210.0,0.23155625]
[1750274411132,0.35918897,104220.0,104210.0,0.23155625]
[1750274411358,0.34,104220.0,104210.0,0.51819801]
[1750274411578,0.34,104220.0,104210.0,0.54899801]
[1750274411793,0.35918878,104220.0,104210.0,0.51819801]
[1750274412218,0.3783783,104220.0,104210.0,0.51819801]
[1750274412432,0.57028004,104220.0,104210.0,0.42195625]
[1750274412660,0.57028004,104220.0,104210.0,0.42195643]
[1750274412881,0.57028004,104220.0,104210.0,0.43155188]
[1750274413149,0.34,104220.0,104210.0,0.24115124]
[1750274413366,0.35918897,104220.0,104210.0,0.24115124]
[1750274413572,0.35918897,104220.0,104210.0,0.43155124]
[1750274414018,0.36878387,104220.0,104210.0,0.43155124]
[1750274414223,0.36878378,104220.0,104210.0,0.24115124]
[1750274414438,0.36878378,104220.0,104210.0,0.43155124]
[1750274414656,0.98071086,104220.0,104210.0,0.00125328]
[1750274414886,0.98071086,104220.0,104210.0,0.19317344]
[1750274415096,0.34,104220.0,104210.0,0.22196025]
[1750274415302,0.36878387,104220.0,104210.0,0.22196025]
[1750274415510,0.36878378,104220.0,104210.0,0.22196025]
[1750274415746,0.98071095,104220.0,104210.0,0.00125328]
[1750274415960,0.98071095,104220.0,104210.0,0.0011]
[1750274416168,1.04451095,104220.0,104210.0,0.0011]
[1750274416588,1.15529356,104220.0,104210.0,0.0011]
[1750274417033,6.20529356,104220.0,104210.0,0.0011]
[1750274417483,1.15529356,104220.0,104210.0,0.0011]
[1750274417723,1.15529356,104220.0,104200.0,0.20178546]
[1750274417724,6.20529356,104220.0,104200.0,0.0001]
[1750274417940,1.34463373,104210.0,104200.0,0.0001]
[1750274418400,6.72130295,104210.0,104200.0,0.0001]
[1750274418614,1.04789557,104200.0,104190.0,0.0001]
[1750274418828,1.20589733,104200.0,104190.0,0.0001]
[1750274419249,1.20598755,104200.0,104190.0,0.0001]
[1750274420532,1.20798755,104200.0,104190.0,0.0001]
[1750274420745,1.23648063,104200.0,104190.0,0.0001]
[1750274421601,6.28648063,104200.0,104190.0,0.0001]
[1750274422250,6.38262985,104200.0,104190.0,0.0001]
[1750274422470,6.38262985,104200.0,104160.0,0.0001]
[1750274422471,0.56573343,104170.0,104160.0,0.0001]
[1750274422681,1.3753946,104170.0,104160.0,0.0001]
[1750274422914,1.4056946,104170.0,104160.0,0.0001]
[1750274423785,0.66297519,104170.0,104160.0,0.0001]
[1750274424004,0.61367258,104170.0,104160.0,0.21146632]
[1750274424219,0.61367258,104170.0,104160.0,0.00025328]
[1750274424220,1.04329199,104170.0,104160.0,0.00025328]
[1750274424423,1.03369276,104170.0,104160.0,0.00025328]
[1750274424669,1.04251362,104170.0,104160.0,0.19226556]
[1750274424885,1.05211285,104170.0,104160.0,0.20186617]
[1750274425114,0.01941972,104170.0,104160.0,0.23066689]
[1750274425321,0.24021199,104170.0,104160.0,0.21146669]
[1750274425546,1.0098314,104170.0,104160.0,0.00025328]
[1750274425760,1.00023245,104170.0,104160.0,0.20186617]
[1750274425987,0.99923245,104170.0,104160.0,0.22106693]
[1750274426194,0.99923245,104170.0,104160.0,0.22206702]
[1750274426402,0.377619,104170.0,104160.0,0.24126722]
[1750274426843,1.00883186,104170.0,104160.0,0.22206702]
[1750274427053,0.79763918,104170.0,104160.0,0.22206693]
[1750274427273,0.99923216,104170.0,104160.0,0.23166717]
[1750274427481,0.80723831,104170.0,104160.0,0.24126667]
[1750274427689,0.3776189,104170.0,104160.0,0.24126667]
[1750274427899,0.3776189,104170.0,104160.0,0.20286608]
[1750274427900,0.56961275,104170.0,104160.0,0.20286608]
[1750274428116,0.56961275,104170.0,104160.0,0.21246641]
[1750274428386,0.57921235,104170.0,104160.0,0.22206665]
[1750274428692,0.57921235,104170.0,104160.0,0.23166661]
[1750274428693,0.36801885,104170.0,104160.0,0.23166661]
[1750274428931,0.34882086,104170.0,104160.0,0.39010837]
[1750274429166,0.34,104170.0,104160.0,0.39010837]
[1750274429899,0.35919827,104170.0,104160.0,0.39010837]
[1750274430112,0.35919827,104170.0,104160.0,0.22206656]
[1750274430113,0.37756007,104170.0,104160.0,0.22206656]
[1750274430339,0.35919827,104170.0,104160.0,0.42190652]
[1750274430569,1.00001045,104170.0,104160.0,0.19326556]
[1750274430787,0.8080165,104170.0,104160.0,0.23166652]
[1750274430998,0.38799669,104170.0,104160.0,0.23166652]
[1750274431254,0.37775586,104170.0,104160.0,0.23166652]
[1750274431464,0.57934977,104170.0,104160.0,0.2124665]
[1750274431671,0.56975091,104170.0,104160.0,0.20286617]
[1750274431874,0.56975091,104170.0,104160.0,0.21246669]
[1750274432078,0.98977082,104170.0,104160.0,0.00125328]
[1750274432285,0.98977082,104170.0,104160.0,0.20286617]
[1750274432503,0.98977082,104170.0,104160.0,0.21246669]
[1750274432735,0.35855787,104170.0,104160.0,0.21246669]
[1750274432958,0.56975073,104170.0,104160.0,0.23166689]
[1750274433195,0.56015141,104170.0,104160.0,0.00025328]
[1750274433407,1.00531167,104170.0,104160.0,0.0001]
[1750274433825,1.00531167,104170.0,104160.0,0.19211228]
[1750274434033,1.00531167,104170.0,104160.0,0.20171289]
[1750274434034,0.99571207,104170.0,104160.0,0.20171289]
[1750274434234,0.99571207,104170.0,104160.0,0.00970061]
[1750274434455,0.99571207,104170.0,104160.0,0.0001]
[1750274434660,0.98611238,104170.0,104160.0,0.00970061]
[1750274435072,0.98611238,104170.0,104160.0,0.0001]
[1750274435902,0.98611238,104170.0,104160.0,0.2017128]
[1750274436568,0.98611238,104170.0,104160.0,0.19211228]
[1750274436782,0.98611238,104170.0,104160.0,0.0001]
[1750274437004,0.93030126,104170.0,104160.0,0.0001]
[1750274437424,0.93030126,104170.0,104160.0,0.22106628]
[1750274437425,0.79488579,104170.0,104160.0,0.22106628]
[1750274437671,0.00995827,104170.0,104160.0,0.28346628]
[1750274437882,0.00995827,104170.0,104160.0,0.56982804]
[1750274438102,0.001,104170.0,104160.0,0.56982804]
[1750274438549,0.001,104170.0,104160.0,1.02029038]
[1750274438767,0.29225022,104200.0,104190.0,0.25360271]
[1750274439000,0.30091291,104200.0,104190.0,0.28420271]
[1750274439220,0.30091291,104200.0,104190.0,0.38044447]
[1750274439221,0.00875291,104200.0,104190.0,0.38044447]
[1750274439865,9.022e-05,104200.0,104190.0,0.38044447]
[1750274440317,0.51721249,104220.0,104210.0,0.21126517]
[1750274440541,0.00873923,104220.0,104210.0,0.23045616]
[1750274440995,0.01833348,104220.0,104210.0,0.26075616]
[1750274441211,0.61824064,104230.0,104220.0,0.20149664]
[1750274441416,0.62783462,104230.0,104220.0,0.21156289]
[1750274441852,0.61824064,104230.0,104220.0,0.00062482]
[1750274442060,0.72902325,104230.0,104220.0,0.00047154]
[1750274442268,1.21355625,104230.0,104220.0,0.00047154]
[1750274442927,1.21655625,104230.0,104220.0,0.00047154]
[1750274443354,1.1399022,104230.0,104220.0,0.00047154]
[1750274443567,1.1488328,104230.0,104220.0,0.00047154]
[1750274443777,1.18143104,104230.0,104220.0,0.20196836]
[1750274444225,1.20993475,104230.0,104220.0,0.21156326]
[1750274444428,1.20993475,104230.0,104220.0,0.20196836]
[1750274444643,1.20325193,104230.0,104220.0,0.21156326]
[1750274444868,1.20325193,104230.0,104220.0,0.00047154]
[1750274445087,0.81029572,104230.0,104220.0,0.21171645]
[1750274445298,0.02152025,104230.0,104220.0,0.2309056]
[1750274445511,0.38070765,104230.0,104220.0,0.2309056]
[1750274445718,0.37111386,104230.0,104220.0,0.2309056]
[1750274446145,0.38070756,104230.0,104220.0,0.2309056]
[1750274446370,0.39030145,104230.0,104220.0,0.2309056]
[1750274446579,0.99286321,104230.0,104220.0,0.00047154]
[1750274447024,1.18278321,104230.0,104220.0,0.00047154]
[1750274447246,0.98130562,104230.0,104220.0,0.21171626]
[1750274447459,0.98130562,104230.0,104220.0,0.00047154]
[1750274447460,1.08312412,104230.0,104220.0,0.00047154]
[1750274447668,1.05434348,104230.0,104220.0,0.00047154]
[1750274447881,1.19442442,104230.0,104220.0,0.00047154]
[1750274448113,1.26400264,104230.0,104220.0,0.00047154]
[1750274449194,1.26399967,104230.0,104220.0,0.00047154]
[1750274450262,1.28679469,104230.0,104220.0,0.00047154]
[1750274451136,1.26399967,104230.0,104220.0,0.00047154]
[1750274451341,1.22389283,104230.0,104220.0,0.00047154]
[1750274451553,1.19442442,104230.0,104220.0,0.00047154]
[1750274452003,1.13294442,104230.0,104220.0,0.00047154]
[1750274452211,1.38390442,104230.0,104220.0,0.00047154]
[1750274452650,1.38386442,104230.0,104220.0,0.00047154]
[1750274452866,1.38386442,104230.0,104220.0,0.20196827]
[1750274453080,1.38386442,104230.0,104220.0,0.00047154]
[1750274453302,1.38386442,104230.0,104220.0,0.20196836]
[1750274453519,0.01192673,104230.0,104220.0,0.26140569]
[1750274453734,0.003,104230.0,104220.0,0.4650015]
[1750274455656,5e-05,104240.0,104230.0,0.28461799]
[1750274455907,5e-05,104240.0,104230.0,1.00044503]
[1750274456335,0.06117,104270.0,104260.0,0.2845545]
[1750274456571,0.06117,104270.0,104260.0,0.57047626]
[1750274456778,5e-05,104270.0,104260.0,0.57047626]
[1750274457713,5e-05,104270.0,104260.0,1.00034154]
[1750274457924,5e-05,104270.0,104260.0,0.57047626]
[1750274458144,5e-05,104270.0,104260.0,1.00034154]
[1750274458366,5e-05,104270.0,104260.0,0.63501711]
[1750274458589,5e-05,104270.0,104260.0,0.57024298]
[1750274458803,5e-05,104270.0,104260.0,0.57439626]
[1750274459018,5e-05,104270.0,104260.0,0.57039626]
[1750274459233,5e-05,104270.0,104260.0,1.00026154]
[1750274459454,5e-05,104270.0,104260.0,1.07080239]
[1750274459676,0.01922407,104300.0,104290.0,0.20151477]
[1750274459889,0.98098025,104300.0,104290.0,0.21110304]
[1750274460102,0.99056724,104300.0,104290.0,0.20151477]
[1750274460332,0.5413614,104290.0,104280.0,0.20151787]
[1750274460550,0.21096962,104280.0,104270.0,0.00015328]
[1750274460763,0.65042465,104280.0,104270.0,0.2015533]
[1750274460975,0.99042465,104280.0,104270.0,0.20155348]
[1750274461182,0.98083546,104280.0,104270.0,0.00015328]
[1750274461393,0.55097018,104280.0,104270.0,0.2111435]
[1750274461615,0.35917774,104280.0,104270.0,0.23032327]
[1750274461821,0.57014755,104280.0,104270.0,0.23032327]
[1750274462033,0.57973702,104280.0,104270.0,0.22073343]
[1750274462270,0.36876684,104280.0,104270.0,0.23032327]
[1750274462479,0.57973766,104280.0,104270.0,0.23032327]
[1750274462689,0.3687673,104280.0,104270.0,0.23132327]
[1750274462898,0.36876684,104280.0,104270.0,0.32756503]
[1750274463117,0.34,104280.0,104270.0,0.32756503]
[1750274463333,0.00018562,104300.0,104290.0,0.22069104]
[1750274463580,0.0097727,104300.0,104290.0,0.5689128]
[1750274463795,0.00018562,104300.0,104290.0,0.5383128]
[1750274464010,0.00018562,104300.0,104290.0,0.30719152]
[1750274464261,0.01935969,104300.0,104290.0,0.20151477]
[1750274464474,0.21111424,104300.0,104290.0,0.20151477]
[1750274464685,0.04812231,104300.0,104290.0,0.23027941]
[1750274464931,0.22070279,104300.0,104290.0,0.20151477]
[1750274465139,0.22070279,104300.0,104290.0,0.22069141]
[1750274465350,0.01077279,104300.0,104290.0,0.2302795]
[1750274465571,0.00118562,104300.0,104290.0,0.2302795]
[1750274465781,0.00118562,104300.0,104290.0,0.38992126]
[1750274468245,0.00018562,104300.0,104290.0,0.38992126]
[1750274468502,0.00018562,104300.0,104290.0,0.39092126]
[1750274468731,0.00018562,104300.0,104290.0,0.38992126]
[1750274468960,0.00018562,104300.0,104290.0,0.39292126]
[1750274469925,0.00018562,104300.0,104290.0,0.88732739]
[1750274470154,0.00018562,104300.0,104290.0,1.27732739]
[1750274470399,5e-05,104310.0,104300.0,1.16727603]
[1750274470644,5e-05,104310.0,104300.0,1.08397251]
[1750274470880,5e-05,104310.0,104300.0,1.51383779]
[1750274471569,0.00305,104310.0,104300.0,0.78365251]
[1750274471789,0.00305,104310.0,104300.0,0.71911166]
[1750274472059,0.00305,104310.0,104300.0,0.56819838]
[1750274472274,0.00305,104310.0,104300.0,0.56835166]
[1750274472534,0.00305,104310.0,104300.0,0.37911166]
[1750274472750,0.00305,104310.0,104300.0,0.56831166]
[1750274472964,5e-05,104310.0,104300.0,0.56831166]
[1750274473407,5e-05,104310.0,104300.0,1.06971779]
[1750274473871,5e-05,104310.0,104300.0,1.40971779]
[1750274474105,5e-05,104310.0,104300.0,1.45971779]
[1750274474798,0.01005,104320.0,104310.0,1.30291404]
[1750274475009,5e-05,104340.0,104330.0,0.28514733]
[1750274475225,0.00019121,104340.0,104330.0,1.06277437]
[1750274475445,0.00019121,104340.0,104330.0,0.69264473]
[1750274475659,0.00019121,104340.0,104330.0,0.63290909]
[1750274475886,0.00019121,104340.0,104330.0,0.66108635]
[1750274476097,0.00019121,104340.0,104330.0,0.72082199]
[1750274476343,0.00019121,104340.0,104330.0,0.70197344]
[1750274476555,0.00019121,104340.0,104330.0,0.61908635]
[1750274476979,0.00019121,104340.0,104330.0,0.66908635]
[1750274477217,0.00019121,104340.0,104330.0,0.65197344]
[1750274477427,0.00019121,104340.0,104330.0,0.38724824]
[1750274477673,0.00019121,104340.0,104330.0,0.57628824]
[1750274477907,0.00019121,104340.0,104330.0,0.51388824]
[1750274478761,0.00019121,104340.0,104330.0,0.50588824]
[1750274479204,0.00019121,104340.0,104330.0,0.50788824]
[1750274480078,0.00019121,104340.0,104330.0,0.50780824]
[1750274480953,0.00019121,104340.0,104330.0,0.56990824]
[1750274481802,0.00019121,104340.0,104330.0,0.99977352]
[1750274482239,0.00019121,104340.0,104330.0,0.56990824]
[1750274482665,0.00019121,104340.0,104330.0,0.58444909]
[1750274482922,0.00019121,104340.0,104330.0,0.63444909]
[1750274483128,0.00019121,104340.0,104330.0,1.06431437]
[1750274483965,0.00019121,104340.0,104330.0,1.06231437]
[1750274484585,0.00019121,104340.0,104330.0,1.06331437]
[1750274484794,0.00019121,104340.0,104330.0,0.63244909]
[1750274485222,0.00019121,104340.0,104330.0,0.63544909]
[1750274485440,0.00019121,104340.0,104330.0,0.38179496]
[1750274485645,0.00019121,104340.0,104330.0,0.57074824]
[1750274485852,0.00019121,104340.0,104330.0,0.31984824]
[1750274486063,0.00019121,104340.0,104330.0,0.50860824]
[1750274487144,0.00019121,104340.0,104330.0,0.31984824]
[1750274487593,1.04330498,104340.0,104330.0,0.09924176]
[1750274487800,1.03372139,104340.0,104330.0,0.003]
[1750274488274,1.04260297,104340.0,104330.0,0.003]
[1750274488490,0.60328419,104330.0,104320.0,0.00015328]
[1750274488697,0.09075618,104320.0,104310.0,0.39974241]
[1750274488917,0.09075618,104320.0,104310.0,0.41891482]
[1750274488918,0.07158506,104320.0,104310.0,0.41891482]
[1750274489145,0.10034134,104320.0,104310.0,0.41891482]
[1750274489386,0.08117021,104320.0,104310.0,0.41891482]
[1750274489593,0.09075554,104320.0,104310.0,0.41891482]
[1750274490234,0.10992667,104320.0,104310.0,0.41891482]
[1750274490658,0.10992667,104320.0,104310.0,0.21106251]
[1750274490659,0.8859632,104320.0,104310.0,0.21106251]
[1750274490868,0.87637732,104320.0,104310.0,0.40928867]
[1750274491075,0.86679116,104320.0,104310.0,0.22064867]
[1750274491284,1.08754779,104320.0,104310.0,0.39015607]
[1750274491514,0.88279222,104320.0,104310.0,0.40932867]
[1750274491725,0.44334124,104320.0,104310.0,0.40932867]
[1750274492141,0.62547443,104320.0,104310.0,0.39015607]
[1750274492345,0.4396888,104320.0,104310.0,0.40932867]
[1750274493171,0.45886002,104320.0,104310.0,0.40932867]
[1750274493384,0.64099248,104320.0,104310.0,0.39015607]
[1750274493593,1.06127233,104320.0,104310.0,0.39015607]
[1750274493812,0.42051777,104320.0,104310.0,0.40932867]
[1750274494027,0.44927405,104320.0,104310.0,0.40932867]
[1750274494235,0.02875876,104310.0,104300.0,0.21092862]
[1750274494440,0.44927396,104320.0,104310.0,0.22064876]
[1750274494664,0.343,104320.0,104310.0,0.31689052]
[1750274494874,0.003,104320.0,104310.0,0.31689052]
[1750274495316,0.34,104330.0,104320.0,0.21087234]
[1750274495317,0.01916855,104330.0,104320.0,0.21087234]
[1750274495519,0.34,104330.0,104320.0,0.50525934]
[1750274496167,0.34,104330.0,104320.0,0.50541262]
[1750274496810,0.35916855,104330.0,104320.0,0.50541262]
[1750274497015,0.34958432,104330.0,104320.0,0.50541262]
[1750274497220,0.34958414,104330.0,104320.0,0.50541262]
[1750274497426,0.34,104330.0,104320.0,0.50541262]
[1750274497634,0.35258423,104330.0,104320.0,0.50541262]
[1750274497844,0.343,104330.0,104320.0,0.50541262]
[1750274499528,0.003,104330.0,104320.0,0.50541262]
[1750274499738,0.003,104330.0,104320.0,0.53861262]
[1750274499948,0.003,104330.0,104320.0,0.56881262]
[1750274500612,0.003,104330.0,104320.0,1.1398728]
[1750274501043,0.00019121,104340.0,104330.0,0.28340648]
[1750274501249,0.00019121,104340.0,104330.0,0.37964824]
[1750274501984,0.00019121,104340.0,104330.0,0.39418909]
[1750274503484,0.00019121,104340.0,104330.0,0.39518909]
[1750274503694,0.00019121,104340.0,104330.0,0.39418909]
[1750274504123,0.00019121,104340.0,104330.0,0.39718909]
[1750274504342,0.00019121,104340.0,104330.0,1.29541341]
[1750274505226,0.00019121,104340.0,104330.0,1.44541341]
[1750274505654,5e-05,104350.0,104340.0,1.38789149]
[1750274505885,5e-05,104360.0,104350.0,1.25497037]
[1750274506128,5e-05,104380.0,104370.0,1.17082813]
[1750274506363,0.00052059,104380.0,104370.0,1.48819525]
[1750274506566,0.00052059,104380.0,104370.0,1.6650438]
[1750274506810,5e-05,104390.0,104380.0,0.67504173]
[1750274507027,0.00019112,104390.0,104380.0,0.89518349]
[1750274507230,0.00019112,104390.0,104380.0,0.91105023]
[1750274507442,0.00019112,104390.0,104380.0,1.21444877]
[1750274507675,0.00019112,104390.0,104380.0,0.38004264]
[1750274507884,0.00019112,104390.0,104380.0,0.31674264]
[1750274508093,0.00019112,104390.0,104380.0,0.50490264]
[1750274508299,0.00719112,104390.0,104380.0,0.50490264]
[1750274508517,0.03299112,104390.0,104380.0,0.50490264]
[1750274508721,0.00019112,104390.0,104380.0,0.50490264]
[1750274509334,0.00019112,104390.0,104380.0,0.31674264]
[1750274509538,0.00119112,104390.0,104380.0,0.51586264]
[1750274509948,0.00119112,104390.0,104380.0,0.52286264]
[1750274510151,0.00119112,104390.0,104380.0,0.51586264]
[1750274510559,0.00119112,104390.0,104380.0,0.52086264]
[1750274511579,0.00119112,104390.0,104380.0,0.52078264]
[1750274511996,0.00114027,104390.0,104380.0,0.52078264]
[1750274512319,0.00114027,104390.0,104380.0,0.52074264]
[1750274513180,0.00114027,104390.0,104380.0,0.33258936]
[1750274513388,0.01071908,104390.0,104380.0,0.33274264]
[1750274513610,0.38281908,104390.0,104380.0,0.52070264]
[1750274514230,0.39239817,104390.0,104380.0,0.33274264]
[1750274514473,0.40197735,104390.0,104380.0,0.52070264]
[1750274514703,0.38281908,104390.0,104380.0,0.52070264]
[1750274514913,0.39239808,104390.0,104380.0,0.52066264]
[1750274515325,0.38281908,104390.0,104380.0,0.52066264]
[1750274515739,0.36029808,104390.0,104380.0,0.52066264]
[1750274516155,0.35071908,104390.0,104380.0,0.52066264]
[1750274516360,0.3602979,104390.0,104380.0,0.52066264]
[1750274516564,1.05513251,104390.0,104380.0,0.11239504]
[1750274516776,1.04555351,104390.0,104380.0,0.01615328]
[1750274517027,1.04555351,104390.0,104380.0,0.016]
[1750274517252,1.04555351,104390.0,104380.0,0.20403328]
[1750274517458,1.25248534,104390.0,104380.0,0.011]
[1750274517667,1.25248534,104390.0,104360.0,0.18799328]
[1750274517668,0.61148788,104370.0,104360.0,0.18799328]